fUSD/lending_fUSD_20250124
["ID","MTS","AMOUNT","RATE_DAILY","PERIOD"]
[350221979,1737705040847,-163.007434,0.00018899,2]
[350221980,1737705040857,-151.0,0.00018899,2]
[350221981,1737705040866,-151.0,0.00018899,2]
[350221982,1737705040875,-151.0,0.00018899,2]
[350221983,1737705040885,-500.0,0.00018899,2]
[350221984,1737705040895,-500.0,0.00018899,2]
[350221986,1737705040904,-151.0,0.00018899,2]
[350221988,1737705040913,-151.0,0.00018899,2]
[350221990,1737705040923,-151.0,0.00018899,2]
[350221992,1737705040932,-177.296,0.00018899,2]
[350221994,1737705040941,-500.0,0.00018899,2]
[350221997,1737705040951,-151.779785,0.00018899,2]
[350222000,1737705040960,-500.0,0.00018899,2]
[350222002,1737705040969,-500.0,0.00018899,2]
[350222005,1737705040978,-500.0,0.00018899,2]
[350222008,1737705040987,-500.0,0.00018899,2]
[350222011,1737705040997,-513.32,0.00018899,2]
[350222015,1737705041006,-500.0,0.00018899,2]
[350222017,1737705041016,-740.38,0.00018899,2]
[350222019,1737705041025,-1091.204027,0.00018899,2]
[350222021,1737705041034,-1091.204027,0.00018899,2]
[350222023,1737705041043,-1091.204027,0.00018899,2]
[350222025,1737705041053,-1091.204027,0.00018899,2]
[350222027,1737705041063,-1091.204027,0.00018899,2]
[350222029,1737705041073,-1091.204027,0.00018899,2]
[350222031,1737705041082,-236.43946,0.00018899,2]
[350222033,1737705041092,-236.43946,0.00018899,2]
[350222035,1737705041102,-236.43946,0.00018899,2]
[350222037,1737705041111,-504.12950376,0.00018899,2]
[350222039,1737705041120,-236.43946,0.00018899,2]
[350222041,1737705041129,-851.71,0.00018899,2]
[350222043,1737705041144,-236.43946,0.00018899,2]
[350222045,1737705041154,-236.43946,0.00018899,2]
[350222047,1737705041164,-500.0,0.00018899,2]
[350222049,1737705041173,-504.93525817,0.00018899,2]
[350222051,1737705041182,-151.0,0.00018899,2]
[350222053,1737705041191,-151.0,0.00018899,2]
[350222055,1737705041200,-151.0,0.00018899,2]
[350222057,1737705041211,-369.652708,0.00018899,2]
[350222059,1737705041220,-369.652708,0.00018899,2]
[350222061,1737705041229,-369.652708,0.00018899,2]
[350222063,1737705041238,-445.39908647,0.00018899,2]
[350222065,1737705041249,-438.95729888,0.00018899,2]
[350222067,1737705041259,-153.258324,0.00018899,2]
[350222068,1737705041268,-153.258324,0.00018899,2]
[350222070,1737705041277,-369.652708,0.00018899,2]
[350222072,1737705041286,-153.258324,0.00018899,2]
[350222074,1737705041296,-369.652708,0.00018899,2]
[350222076,1737705041305,-369.652708,0.00018899,2]
[350222078,1737705041315,-2122.34,0.00018899,2]
[350222080,1737705041324,-153.258324,0.00018899,2]
[350222082,1737705041333,-153.258324,0.00018899,2]
[350222084,1737705041342,-153.258324,0.00018899,2]
[350222086,1737705041352,-3513.36,0.00018899,2]
[350222088,1737705041361,-153.092096,0.00018899,2]
[350222090,1737705041370,-190.720574,0.00018899,2]
[350222092,1737705041380,-190.720574,0.00018899,2]
[350222094,1737705041389,-190.720574,0.00018899,2]
[350222096,1737705041399,-190.720574,0.00018899,2]
[350222099,1737705041415,-190.720574,0.00018899,2]
[350222101,1737705041425,-500.0,0.00018899,2]
[350222103,1737705041435,-190.720574,0.00018899,2]
[350222105,1737705041444,-410.285566,0.00018899,2]
[350222106,1737705041455,-410.285566,0.00018899,2]
[350222108,1737705041465,-410.285566,0.00018899,2]
[350222111,1737705041476,-410.285566,0.00018899,2]
[350222113,1737705041486,-410.285566,0.00018899,2]
[350222115,1737705041495,-410.285566,0.00018899,2]
[350222117,1737705041504,-500.0,0.00018899,2]
[350222119,1737705041513,-500.0,0.00018899,2]
[350222121,1737705041523,-500.0,0.00018899,2]
[350222123,1737705041532,-500.0,0.00018899,2]
[350222125,1737705041543,-737369.68789031,0.000189,2]
[350222127,1737705041554,-151.374437,0.000189,2]
[350222129,1737705041567,-151.0,0.000189,2]
[350222131,1737705041576,-152.054873,0.000189,2]
[350222133,1737705041590,-151.0,0.000189,2]
[350222135,1737705041600,-151.0,0.000189,2]
[350222137,1737705041610,-151.0,0.000189,2]
[350222139,1737705041619,-151.0,0.000189,2]
[350222141,1737705041627,-151.0,0.000189,2]
[350222143,1737705041637,-151.0,0.000189,2]
[350222145,1737705041646,-151.0,0.000189,2]
[350222147,1737705041655,-151.0,0.000189,2]
[350222149,1737705041664,-155.144835,0.000189,2]
[350222151,1737705041673,-320.973616,0.000189,2]
[350222153,1737705041682,-320.973616,0.000189,2]
[350222155,1737705041691,-320.973616,0.000189,2]
[350222157,1737705041701,-320.973616,0.000189,2]
[350222158,1737705041711,-300.302785,0.000189,2]
[350222160,1737705041720,-300.302785,0.000189,2]
[350222162,1737705041729,-300.302785,0.000189,2]
[350222164,1737705041738,-151.0,0.000189,2]
[350222166,1737705041747,-300.302785,0.000189,2]
[350222168,1737705041756,-151.0,0.000189,2]
[350222170,1737705041767,-151.0,0.000189,2]
[350222172,1737705041776,-151.0,0.000189,2]
[350222174,1737705041785,-152.529817,0.000189,2]
[350222176,1737705041795,-151.0,0.000189,2]
[350222178,1737705041805,-151.0,0.000189,2]
[350222180,1737705041814,-151.0,0.000189,2]
[350222182,1737705041823,-151.0,0.000189,2]
[350222184,1737705041832,-150.0,0.000189,2]
[350222186,1737705041841,-438.48,0.000189,2]
[350222188,1737705041850,-150.0,0.000189,2]
[350222190,1737705041860,-982.04,0.000189,2]
[350222192,1737705041869,-150.59,0.000189,2]
[350222194,1737705041879,-150.0,0.000189,2]
[350222205,1737705042007,-773.52,0.000189,2]
[350222207,1737705042017,-525.52,0.000189,2]
[350222209,1737705042027,-181.63,0.000189,2]
[350222211,1737705042036,-179.1054,0.000189,2]
[350222213,1737705042046,-179.1054,0.000189,2]
[350222215,1737705042056,-179.1054,0.000189,2]
[350222218,1737705042066,-179.1054,0.000189,2]
[350222220,1737705042075,-151.0,0.000189,2]
[350222222,1737705042084,-151.0,0.000189,2]
[350222224,1737705042093,-181.631858,0.000189,2]
[350222225,1737705042102,-181.631858,0.000189,2]
[350222227,1737705042112,-437.93,0.000189,2]
[350222230,1737705042123,-150.0,0.000189,2]
[350222232,1737705042132,-773.52,0.000189,2]
[350222233,1737705042141,-181.631858,0.000189,2]
[350222235,1737705042150,-181.631858,0.000189,2]
[350222237,1737705042159,-151.0,0.000189,2]
[350222239,1737705042168,-287.167214,0.000189,2]
[350222241,1737705042177,-150.0,0.000189,2]
[350222243,1737705042186,-773.52,0.000189,2]
[350222245,1737705042195,-437.93,0.000189,2]
[350222247,1737705042204,-151.0,0.000189,2]
[350222249,1737705042214,-151.0,0.000189,2]
[350222251,1737705042223,-770.23,0.000189,2]
[350222253,1737705042232,-150.0,0.000189,2]
[350222255,1737705042241,-151.0,0.000189,2]
[350222257,1737705042250,-151.0,0.000189,2]
[350222259,1737705042259,-151.0,0.000189,2]
[350222261,1737705042268,-151.0,0.000189,2]
[350222263,1737705042277,-246.039152,0.000189,2]
[350222265,1737705042287,-465.014873,0.000189,2]
[350222267,1737705042296,-465.014873,0.000189,2]
[350222269,1737705042306,-465.014873,0.000189,2]
[350222271,1737705042315,-465.014873,0.000189,2]
[350222273,1737705042324,-151.0,0.000189,2]
[350222275,1737705042335,-151.0,0.000189,2]
[350222277,1737705042345,-151.0,0.000189,2]
[350222280,1737705042355,-151.0,0.000189,2]
[350222282,1737705042364,-151.0,0.000189,2]
[350222283,1737705042373,-205.67954,0.000189,2]
[350222286,1737705042383,-205.67954,0.000189,2]
[350222287,1737705042392,-252.892099,0.000189,2]
[350222288,1737705042401,-252.892099,0.000189,2]
[350222289,1737705042410,-155.042143,0.000189,2]
[350222291,1737705042421,-151.0,0.000189,2]
[350222293,1737705042431,-151.0,0.000189,2]
[350222295,1737705042440,-151.0,0.000189,2]
[350222297,1737705042449,-207.3121948,0.000189,2]
[350222298,1737705042459,-1091.204027,0.000189,2]
[350222299,1737705042468,-1091.204027,0.000189,2]
[350222300,1737705042478,-236.43946,0.000189,2]
[350222301,1737705042488,-236.43946,0.000189,2]
[350222302,1737705042497,-151.0,0.000189,2]
[350222303,1737705042507,-369.652708,0.000189,2]
[350222304,1737705042516,-153.258324,0.000189,2]
[350222305,1737705042525,-369.652708,0.000189,2]
[350222306,1737705042535,-153.258324,0.000189,2]
[350222307,1737705042545,-3000.0,0.000189,2]
[350222308,1737705042555,-190.720574,0.000189,2]
[350222309,1737705042569,-190.720574,0.000189,2]
[350222310,1737705042579,-410.285566,0.000189,2]
[350222311,1737705042588,-410.285566,0.000189,2]
[350222312,1737705042598,-1814.11304795,0.00018933,2]
[350222313,1737705042609,-1560.54310689,0.00018933,2]
[350222314,1737705042618,-25766.28332614,0.00018964,2]
[350222315,1737705042628,-500.0,0.00018973,2]
[350222316,1737705042637,-224.86309019,0.00018973,2]
[350222317,1737705042649,-500.0,0.00018986,2]
[350222318,1737705042658,-151.0,0.00018997,2]
[350222319,1737705042667,-151.0,0.00018997,2]
[350222320,1737705042676,-151.0,0.00018997,2]
[350222321,1737705042686,-500.0,0.00018997,2]
[350222322,1737705042695,-500.0,0.00018997,2]
[350222323,1737705042705,-500.0,0.00018997,2]
[350222324,1737705042714,-500.0,0.00018997,2]
[350222325,1737705042724,-500.0,0.00018997,2]
[350222326,1737705042733,-409.88583569,0.00018997,2]
[350222327,1737705042742,-500.0,0.00018997,2]
[350222328,1737705042753,-1648.38,0.00018997,2]
[350222329,1737705042762,-506.19274385,0.00018997,2]
[350222330,1737705042771,-500.0,0.00018997,2]
[350222331,1737705042780,-500.0,0.00018997,2]
[350222332,1737705042790,-506.44884165,0.00018997,2]
[350222333,1737705042798,-500.0,0.00018997,2]
[350222334,1737705042808,-500.0,0.00018997,2]
[350222335,1737705042817,-509.8934112,0.00018997,2]
[350222336,1737705042827,-151.0,0.00018997,2]
[350222337,1737705042837,-536.03445916,0.00018997,2]
[350222338,1737705042846,-151.0,0.00018997,2]
[350222339,1737705042855,-320.973616,0.00018997,2]
[350222340,1737705042864,-320.973616,0.00018997,2]
[350222341,1737705042874,-300.302785,0.00018997,2]
[350222342,1737705042884,-300.302785,0.00018997,2]
[350222343,1737705042893,-151.0,0.00018997,2]
[350222344,1737705042903,-151.0,0.00018997,2]
[350222345,1737705042912,-151.0,0.00018997,2]
[350222346,1737705042922,-151.0,0.00018997,2]
[350222347,1737705042931,-179.1054,0.00018997,2]
[350222348,1737705042941,-179.1054,0.00018997,2]
[350222349,1737705042950,-181.631858,0.00018997,2]
[350222350,1737705042960,-181.631858,0.00018997,2]
[350222351,1737705042970,-151.0,0.00018997,2]
[350222352,1737705042980,-151.0,0.00018997,2]
[350222353,1737705042990,-151.0,0.00018997,2]
[350222354,1737705043001,-465.014873,0.00018997,2]
[350222355,1737705043009,-465.014873,0.00018997,2]
[350222356,1737705043019,-151.0,0.00018997,2]
[350222357,1737705043028,-151.0,0.00018997,2]
[350222358,1737705043037,-151.0,0.00018997,2]
[350222359,1737705043047,-151.0,0.00018997,2]
[350222360,1737705043057,-151.0,0.00018997,2]
[350222361,1737705043067,-205.67954,0.00018997,2]
[350222363,1737705043077,-205.67954,0.00018997,2]
[350222365,1737705043086,-252.892099,0.00018997,2]
[350222367,1737705043095,-252.892099,0.00018997,2]
[350222368,1737705043105,-151.0,0.00018997,2]
[350222369,1737705043114,-151.0,0.00018997,2]
[350222370,1737705043123,-151.0,0.00018997,2]
[350222371,1737705043133,-1091.204027,0.00018997,2]
[350222372,1737705043142,-1091.204027,0.00018997,2]
[350222373,1737705043151,-236.43946,0.00018997,2]
[350222374,1737705043161,-236.43946,0.00018997,2]
[350222375,1737705043170,-154.706039,0.00018997,2]
[350222376,1737705043180,-369.652708,0.00018997,2]
[350222378,1737705043189,-153.258324,0.00018997,2]
[350222380,1737705043199,-369.652708,0.00018997,2]
[350222382,1737705043208,-153.258324,0.00018997,2]
[350222384,1737705043217,-190.720574,0.00018997,2]
[350222385,1737705043227,-190.720574,0.00018997,2]
[350222386,1737705043236,-410.285566,0.00018997,2]
[350222387,1737705043245,-410.285566,0.00018997,2]
[350222388,1737705043255,-477.73441934,0.00018998,2]
[350222389,1737705043265,-501.75718478,0.00018998,2]
[350222390,1737705043274,-151.0,0.00018998,2]
[350222392,1737705043283,-151.0,0.00018998,2]
[350222393,1737705043293,-151.0,0.00018998,2]
[350222394,1737705043303,-151.60477639,0.00018999,2]
[350222395,1737705043313,-151.0,0.00018999,2]
[350222396,1737705043323,-152.358555,0.00018999,2]
[350222397,1737705043333,-151.0,0.00018999,2]
[350222398,1737705043342,-174.408685,0.00018999,2]
[350222400,1737705043351,-151.0,0.00018999,2]
[350222401,1737705043361,-151.0,0.00018999,2]
[350222402,1737705043370,-320.973616,0.00018999,2]
[350222403,1737705043380,-320.973616,0.00018999,2]
[350222404,1737705043389,-300.302785,0.00018999,2]
[350222405,1737705043399,-300.302785,0.00018999,2]
[350222406,1737705043408,-151.0,0.00018999,2]
[350222407,1737705043417,-151.0,0.00018999,2]
[350222408,1737705043427,-151.0,0.00018999,2]
[350222409,1737705043436,-151.0,0.00018999,2]
[350222410,1737705043446,-535.42,0.00018999,2]
[350222411,1737705043455,-179.1054,0.00018999,2]
[350222412,1737705043464,-179.1054,0.00018999,2]
[350222413,1737705043474,-1814.11304795,0.00018999,2]
[350222414,1737705043484,-1560.54310689,0.00018999,2]
[350222415,1737705043493,-18823.57339052,0.00019,2]
[350222425,1737705044422,-150.17195339,0.00018804,20]
[350222426,1737705044432,-164.89104861,0.00018898,2]
[350222427,1737705044446,-1344.49895139,0.00018898,2]
[350222428,1737705044456,-151.0,0.00018898,2]
[350222429,1737705044465,-32062.41388449,0.00018899,2]
[350222430,1737705044625,-151.0,0.00018898,2]
[350222431,1737705044635,-2931.57448967,0.00018899,2]
[350222432,1737705044651,-3376.60000001,0.00018899,2]
[350222433,1737705044663,-733.39,0.00018899,2]
[350222434,1737705044674,-673.42889055,0.00018899,2]
[350222435,1737705044685,-41985.7943228,0.00018899,2]
[350222436,1737705044701,-24668.49571921,0.00018899,2]
[350222437,1737705044712,-151.0,0.00018899,2]
[350222438,1737705044721,-151.0,0.00018899,2]
[350222439,1737705044731,-151.0,0.00018899,2]
[350222440,1737705044740,-151.0,0.00018899,2]
[350222441,1737705044749,-151.0,0.000189,2]
[350222442,1737705044759,-44437.42660948,0.00019,2]
[350222443,1737705044768,-79422.34827804,0.00019,2]
[350222444,1737705044778,-810395.2559432,0.00019,3]
[350222445,1737705046403,-151.0,0.00018898,2]
[350222446,1737705046415,-500.0,0.00018898,2]
[350222447,1737705046424,-134.66441299,0.00018898,2]
[350222448,1737705046435,-365.33558701,0.00018898,2]
[350222449,1737705046445,-151.0,0.00018899,2]
[350222450,1737705046454,-151.0,0.00018899,2]
[350222451,1737705046464,-151.0,0.00018997,2]
[350222452,1737705046473,-20553.43845302,0.00019,3]
[350222453,1737705046493,-151.0,0.00018899,2]
[350222454,1737705046503,-16940.2980672,0.00019,3]
[350222455,1737705046515,-1994.77285312,0.00019,3]
[350222456,1737705046668,-3162.95477705,0.00019,3]
[350222457,1737705046748,-151.0,0.000189,2]
[350222458,1737705046759,-1188.64220743,0.00019,3]
[350222459,1737705046772,-1371.12,0.00019,3]
[350222524,1737706231453,-318.08,0.00015825,2]
[350222525,1737706231462,-250.0,0.00017463,2]
[350222526,1737706231472,-158.03,0.00017508,2]
[350222527,1737706231482,-150.0,0.00017523,2]
[350222528,1737706231491,-250.0,0.0001755,2]
[350222529,1737706231500,-200.0,0.00017557,2]
[350222530,1737706231509,-1000.0,0.00017581,2]
[350222531,1737706231518,-217.32,0.00017647,2]
[350222532,1737706231528,-5929.7594,0.0001767,2]
[350222533,1737706231537,-1500.0,0.00017783,2]
[350222534,1737706231546,-217.38,0.00017824,2]
[350222535,1737706231555,-180.61,0.00017866,2]
[350222536,1737706231565,-508.743668,0.0001787,2]
[350222537,1737706231574,-2793.71,0.00017888,2]
[350222538,1737706231583,-181.6,0.00017888,2]
[350222539,1737706231593,-779.3,0.00017932,2]
[350222540,1737706231602,-172.31,0.00018082,2]
[350222541,1737706231611,-318.08,0.00018089,2]
[350222542,1737706231620,-508.743668,0.00018093,2]
[350222543,1737706231630,-508.743668,0.00018317,2]
[350222544,1737706231639,-508.743668,0.0001854,2]
[350222545,1737706231648,-184.6,0.00018552,2]
[350222546,1737706231657,-250.0,0.00018626,2]
[350222547,1737706231666,-601.58519844,0.00018698,2]
[350222548,1737706231675,-508.743668,0.00018764,2]
[350222549,1737706231686,-956.445,0.00018798,2]
[350222550,1737706231696,-1409.09767933,0.00018798,2]
[350222551,1737706231705,-23302.28105605,0.00018798,2]
[350222552,1737706231729,-2661.82110246,0.00018798,2]
[350222553,1737706231744,-202.20914149,0.00018798,2]
[350222554,1737706231753,-1162.8722,0.00018798,2]
[350222555,1737706231762,-836.49658688,0.0001887,2]
[350222652,1737706232758,773.0,0.000131,5]
[350223123,1737706237434,-572.60109243,0.0001887,2]
[350223125,1737706237443,-501.43523352,0.00018897,2]
[350223127,1737706237452,-500.0,0.00018897,2]
[350223129,1737706237462,-500.0,0.00018897,2]
[350223131,1737706237471,-500.0,0.00018897,2]
[350223133,1737706237480,-500.0,0.00018897,2]
[350223135,1737706237490,-500.0,0.00018897,2]
[350223137,1737706237500,-500.0,0.00018897,2]
[350223140,1737706237509,-500.0,0.00018897,2]
[350223142,1737706237519,-508.54818799,0.00018897,2]
[350223144,1737706237529,-509.31912478,0.00018897,2]
[350223146,1737706237538,-500.0,0.00018897,2]
[350223148,1737706237547,-500.0,0.00018897,2]
[350223150,1737706237556,-203.14020915,0.00018897,2]
[350223152,1737706237565,-500.0,0.00018897,2]
[350223154,1737706237575,-500.0,0.00018897,2]
[350223156,1737706237584,-500.0,0.00018897,2]
[350223158,1737706237593,-500.0,0.00018897,2]
[350223160,1737706237603,-500.0,0.00018897,2]
[350223162,1737706237612,-500.0,0.00018897,2]
[350223164,1737706237621,-500.0,0.00018897,2]
[350223166,1737706237630,-500.0,0.00018897,2]
[350223168,1737706237639,-500.0,0.00018897,2]
[350223169,1737706237648,-500.0,0.00018897,2]
[350223171,1737706237657,-500.0,0.00018897,2]
[350223173,1737706237666,-500.0,0.00018897,2]
[350223175,1737706237675,-500.0,0.00018897,2]
[350223177,1737706237685,-500.0,0.00018897,2]
[350223179,1737706237694,-500.0,0.00018897,2]
[350223181,1737706237703,-500.0,0.00018897,2]
[350223183,1737706237712,-500.0,0.00018897,2]
[350223185,1737706237721,-500.0,0.00018897,2]
[350223187,1737706237730,-500.0,0.00018897,2]
[350223189,1737706237739,-500.0,0.00018897,2]
[350223191,1737706237748,-500.0,0.00018897,2]
[350223193,1737706237758,-500.0,0.00018897,2]
[350223195,1737706237767,-500.0,0.00018897,2]
[350223197,1737706237776,-509.00722959,0.00018897,2]
[350223199,1737706237784,-500.0,0.00018897,2]
[350223201,1737706237793,-503.87905432,0.00018897,2]
[350223203,1737706237802,-500.0,0.00018897,2]
[350223205,1737706237811,-500.0,0.00018897,2]
[350223207,1737706237820,-500.0,0.00018897,2]
[350223209,1737706237829,-500.0,0.00018897,2]
[350223211,1737706237840,-500.0,0.00018897,2]
[350223213,1737706237849,-512.73176286,0.00018897,2]
[350223215,1737706237858,-500.0,0.00018897,2]
[350223217,1737706237867,-500.0,0.00018897,2]
[350223219,1737706237876,-383.03657449,0.00018897,2]
[350223221,1737706237885,-500.0,0.00018897,2]
[350223224,1737706237894,-580.32846184,0.00018897,2]
[350223227,1737706237904,-500.0,0.00018897,2]
[350223229,1737706237913,-500.0,0.00018897,2]
[350223231,1737706237922,-500.0,0.00018897,2]
[350223233,1737706237931,-500.0,0.00018897,2]
[350223235,1737706237940,-440.40264742,0.00018897,2]
[350223237,1737706237949,-500.0,0.00018897,2]
[350223239,1737706237958,-500.0,0.00018897,2]
[350223241,1737706237971,-500.0,0.00018897,2]
[350223243,1737706237980,-510.43037901,0.00018897,2]
[350223245,1737706237989,-501.95324315,0.00018897,2]
[350223247,1737706237998,-426.49455111,0.00018897,2]
[350223248,1737706238007,-500.0,0.00018897,2]
[350223250,1737706238015,-500.0,0.00018897,2]
[350223252,1737706238024,-500.0,0.00018897,2]
[350223254,1737706238033,-500.0,0.00018897,2]
[350223256,1737706238043,-500.0,0.00018897,2]
[350223258,1737706238052,-500.0,0.00018897,2]
[350223260,1737706238061,-152.03956248,0.00018897,2]
[350223262,1737706238070,-500.0,0.00018897,2]
[350223264,1737706238079,-508.66087718,0.00018897,2]
[350223266,1737706238089,-500.0,0.00018897,2]
[350223268,1737706238099,-200.0,0.00018897,2]
[350223270,1737706238107,-500.0,0.00018897,2]
[350223272,1737706238116,-500.0,0.00018897,2]
[350223274,1737706238125,-500.0,0.00018897,2]
[350223276,1737706238135,-500.0,0.00018897,2]
[350223278,1737706238143,-500.0,0.00018897,2]
[350223280,1737706238152,-152.95012897,0.00018897,2]
[350223283,1737706238170,-347.04987103,0.00018897,2]
[350223285,1737706238179,-279.45812897,0.00018897,2]
[350223289,1737706238202,-220.54187103,0.00018897,2]
[350223291,1737706238211,-316.11877924,0.00018897,2]
[350223453,1737706239781,-183.88122076,0.00018897,2]
[350223455,1737706239791,-242.50452386,0.00018897,2]
[350223565,1737706240928,-260.66667045,0.00018897,2]
[350223567,1737706240937,-500.0,0.00018897,2]
[350223569,1737706240946,-500.0,0.00018897,2]
[350223571,1737706240957,-500.0,0.00018897,2]
[350223573,1737706240977,-500.0,0.00018897,2]
[350223576,1737706240996,-500.0,0.00018897,2]
[350223578,1737706241006,-500.0,0.00018897,2]
[350223580,1737706241015,-500.0,0.00018897,2]
[350223582,1737706241024,-500.0,0.00018897,2]
[350223584,1737706241034,-500.0,0.00018897,2]
[350223586,1737706241043,-500.0,0.00018897,2]
[350223588,1737706241052,-500.0,0.00018897,2]
[350223590,1737706241061,-500.0,0.00018897,2]
[350223592,1737706241071,-500.0,0.00018897,2]
[350223594,1737706241080,-500.0,0.00018897,2]
[350223596,1737706241089,-500.0,0.00018897,2]
[350223598,1737706241100,-500.0,0.00018897,2]
[350223600,1737706241109,-500.0,0.00018897,2]
[350223602,1737706241118,-500.0,0.00018897,2]
[350223604,1737706241127,-500.0,0.00018897,2]
[350223606,1737706241137,-500.0,0.00018897,2]
[350223608,1737706241146,-500.0,0.00018897,2]
[350223609,1737706241156,-500.0,0.00018897,2]
[350223611,1737706241165,-500.0,0.00018897,2]
[350223613,1737706241175,-589.85292415,0.00018897,2]
[350223615,1737706241184,-764.166376,0.00018897,2]
[350223617,1737706241193,-500.0,0.00018897,2]
[350223619,1737706241202,-500.0,0.00018897,2]
[350223621,1737706241211,-500.0,0.00018897,2]
[350223623,1737706241220,-500.0,0.00018897,2]
[350223626,1737706241230,-500.0,0.00018897,2]
[350223628,1737706241239,-500.0,0.00018897,2]
[350223630,1737706241249,-160.721841,0.00018897,2]
[350223632,1737706241257,-500.0,0.00018897,2]
[350223634,1737706241267,-500.0,0.00018897,2]
[350223636,1737706241276,-500.0,0.00018897,2]
[350223638,1737706241285,-160.644633,0.00018897,2]
[350223640,1737706241294,-500.0,0.00018897,2]
[350223641,1737706241303,-500.0,0.00018897,2]
[350223643,1737706241313,-500.0,0.00018897,2]
[350223645,1737706241321,-528.03136754,0.00018897,2]
[350223647,1737706241330,-500.0,0.00018897,2]
[350223649,1737706241339,-500.0,0.00018897,2]
[350223651,1737706241348,-500.0,0.00018897,2]
[350223653,1737706241358,-518.42197236,0.00018897,2]
[350223655,1737706241367,-508.95141672,0.00018897,2]
[350223657,1737706241376,-500.0,0.00018897,2]
[350223660,1737706241387,-500.0,0.00018897,2]
[350223662,1737706241398,-673.828549,0.00018897,2]
[350223664,1737706241407,-500.0,0.00018897,2]
[350223666,1737706241417,-500.0,0.00018897,2]
[350223668,1737706241426,-500.0,0.00018897,2]
[350223670,1737706241436,-500.0,0.00018897,2]
[350223671,1737706241446,-500.0,0.00018897,2]
[350223673,1737706241456,-500.0,0.00018897,2]
[350223675,1737706241466,-500.0,0.00018897,2]
[350223677,1737706241476,-500.0,0.00018897,2]
[350223679,1737706241486,-500.0,0.00018897,2]
[350223681,1737706241495,-500.0,0.00018897,2]
[350223683,1737706241505,-500.0,0.00018897,2]
[350223685,1737706241515,-500.0,0.00018897,2]
[350223686,1737706241524,-500.0,0.00018897,2]
[350223688,1737706241534,-504.30943995,0.00018897,2]
[350223690,1737706241544,-500.0,0.00018897,2]
[350223692,1737706241554,-292.0979637,0.00018897,2]
[350223694,1737706241563,-500.0,0.00018897,2]
[350223696,1737706241573,-500.0,0.00018897,2]
[350223698,1737706241583,-500.0,0.00018897,2]
[350223700,1737706241592,-500.0,0.00018897,2]
[350223702,1737706241604,-500.0,0.00018897,2]
[350223704,1737706241615,-503.19179833,0.00018897,2]
[350223706,1737706241625,-500.0,0.00018897,2]
[350223708,1737706241635,-500.0,0.00018897,2]
[350223710,1737706241645,-500.0,0.00018897,2]
[350223712,1737706241655,-500.0,0.00018897,2]
[350223714,1737706241666,-500.0,0.00018897,2]
[350223716,1737706241675,-507.94758113,0.00018897,2]
[350223718,1737706241684,-232.36697253,0.00018897,2]
[350223720,1737706241698,-267.63302747,0.00018897,2]
[350223722,1737706241707,-89.60697323,0.00018897,2]
[350223724,1737706241717,-317.120004,0.00018897,2]
[350223727,1737706241732,-93.27302277,0.00018897,2]